fUSD/lending_fUSD_20240629
["ID","MTS","AMOUNT","RATE_DAILY","PERIOD"]
[330652438,1719691839683,-797.44,0.00013698,3]
[330652441,1719691839693,-1874.73,0.00013698,3]
[330652444,1719691839703,-500.0,0.00013698,3]
[330652446,1719691839712,-500.0,0.00013698,3]
[330652448,1719691839721,-500.0,0.00013698,3]
[330652451,1719691839731,-500.0,0.00013698,3]
[330652454,1719691839760,-526.45,0.00013698,3]
[330652456,1719691839771,-1307.31,0.00013698,3]
[330652458,1719691839780,-3011.45,0.00013698,3]
[330652460,1719691839790,-573.5,0.00013698,3]
[330652462,1719691839800,-2343.06,0.00013698,3]
[330652464,1719691839810,-500.0,0.00013698,3]
[330652466,1719691839819,-500.0,0.00013698,3]
[330652468,1719691839830,-500.0,0.00013698,3]
[330652470,1719691839840,-1090.54,0.00013698,3]
[330652472,1719691839850,-333.33408636,0.00013698,3]
[330652474,1719691839861,-759.55,0.00013698,3]
[330652476,1719691839871,-1669.44,0.00013698,3]
[330652478,1719691839881,-500.0,0.00013698,3]
[330652480,1719691839891,-528.18299409,0.00013698,3]
[330652482,1719691839901,-601.55,0.00013698,3]
[330652484,1719691839911,-2500.0,0.00013698,3]
[330652486,1719691839921,-817.93,0.00013698,3]
[330652488,1719691839931,-1095.91,0.00013698,3]
[330652490,1719691839940,-500.0,0.00013698,3]
[330652492,1719691839950,-500.0,0.00013698,3]
[330652494,1719691839959,-767.05,0.00013698,3]
[330652496,1719691839970,-1033.86,0.00013698,3]
[330652498,1719691839980,-905.23,0.00013698,3]
[330652500,1719691839989,-2071.82,0.00013698,3]
[330652502,1719691839999,-1041.09,0.00013698,3]
[330652504,1719691840009,-500.0,0.00013698,3]
[330652506,1719691840019,-500.0,0.00013698,3]
[330652508,1719691840030,-500.0,0.00013698,3]
[330652510,1719691840043,-500.0,0.00013698,3]
[330652512,1719691840054,-500.0,0.00013698,3]
[330652514,1719691840064,-960.65,0.00013698,3]
[330652516,1719691840074,-1461.74,0.00013698,3]
[330652518,1719691840085,-500.0,0.00013698,3]
[330652520,1719691840095,-876.04,0.00013698,3]
[330652522,1719691840104,-2221.35,0.00013698,3]
[330652524,1719691840114,-2107.8,0.00013698,3]
[330652526,1719691840124,-632.41,0.00013698,3]
[330652528,1719691840133,-500.0,0.00013698,3]
[330652531,1719691840144,-500.0,0.00013698,3]
[330652533,1719691840154,-522.29,0.00013698,3]
[330652535,1719691840163,-500.0,0.00013698,3]
[330652536,1719691840173,-500.0,0.00013698,3]
[330652538,1719691840183,-500.0,0.00013698,3]
[330652541,1719691840193,-658.99,0.00013698,3]
[330652542,1719691840202,-151.0,0.00013698,2]
[330652544,1719691840212,-660.2,0.00013698,3]
[330652546,1719691840222,-151.0,0.00013698,2]
[330652548,1719691840232,-500.0,0.00013698,3]
[330652551,1719691840242,-1560.22,0.00013698,3]
[330652553,1719691840251,-500.0,0.00013698,3]
[330652588,1719691840649,-585.77,0.00013698,3]
[330652590,1719691840659,-153.139188,0.00013698,2]
[330652592,1719691840670,-343.39160055,0.00013698,3]
[330652594,1719691840679,-2236.03,0.00013698,3]
[330652596,1719691840688,-500.0,0.00013698,3]
[330652598,1719691840698,-500.0,0.00013698,3]
[330652600,1719691840707,-500.0,0.00013698,3]
[330652602,1719691840717,-500.0,0.00013698,3]
[330652604,1719691840727,-500.0,0.00013698,3]
[330652606,1719691840736,-1299.54,0.00013698,3]
[330652607,1719691840746,-500.0,0.00013698,3]
[330652608,1719691840756,-500.0,0.00013698,3]
[330652609,1719691840765,-2557.23,0.00013698,3]
[330652610,1719691840775,-1368.38,0.00013698,3]
[330652611,1719691840785,-2862.07,0.00013698,3]
[330652612,1719691840795,-500.0,0.00013698,3]
[330652613,1719691840804,-3962.48,0.00013698,3]
[330652614,1719691840813,-775.86,0.00013698,3]
[330652615,1719691840823,-500.0,0.00013698,3]
[330652616,1719691840833,-500.0,0.00013698,3]
[330652617,1719691840843,-580.78,0.00013698,3]
[330652618,1719691840852,-1994.32,0.00013698,3]
[330652619,1719691840861,-500.0,0.00013698,3]
[330652620,1719691840871,-500.0,0.00013698,3]
[330652621,1719691840880,-500.0,0.00013698,3]
[330652622,1719691840890,-949.77,0.00013698,3]
[330652623,1719691840900,-500.0,0.00013698,3]
[330652624,1719691840909,-500.0,0.00013698,3]
[330652625,1719691840919,-549.11,0.00013698,3]
[330652626,1719691840928,-500.0,0.00013698,3]
[330652627,1719691840938,-1796.47,0.00013698,3]
[330652628,1719691840947,-500.0,0.00013698,3]
[330652629,1719691840956,-500.0,0.00013698,3]
[330652630,1719691840966,-500.0,0.00013698,3]
[330652631,1719691840976,-500.0,0.00013698,3]
[330652632,1719691840986,-500.0,0.00013698,3]
[330652633,1719691840995,-500.0,0.00013698,3]
[330652634,1719691841004,-500.0,0.00013698,3]
[330652635,1719691841014,-500.0,0.00013698,3]
[330652636,1719691841024,-500.0,0.00013698,3]
[330652637,1719691841035,-500.0,0.00013698,3]
[330652638,1719691841045,-500.0,0.00013698,3]
[330652639,1719691841055,-1457.72,0.00013698,3]
[330652640,1719691841064,-500.0,0.00013698,3]
[330652641,1719691841073,-603.22,0.00013698,3]
[330652642,1719691841084,-1022.34,0.00013698,3]
[330652643,1719691841093,-500.0,0.00013698,3]
[330652644,1719691841102,-1135.02,0.00013698,3]
[330652645,1719691841112,-500.0,0.00013698,3]
[330652646,1719691841121,-500.0,0.00013698,3]
[330652647,1719691841130,-1682.03,0.00013698,3]
[330652648,1719691841140,-500.0,0.00013698,3]
[330652649,1719691841149,-500.0,0.00013698,3]
[330652650,1719691841159,-500.0,0.00013698,3]
[330652651,1719691841168,-500.0,0.00013698,3]
[330652652,1719691841178,-1767.44,0.00013698,3]
[330652653,1719691841187,-500.0,0.00013698,3]
[330652654,1719691841197,-500.0,0.00013698,3]
[330652655,1719691841207,-500.0,0.00013698,3]
[330652656,1719691841216,-500.0,0.00013698,3]
[330652657,1719691841225,-1880.56,0.00013698,3]
[330652658,1719691841235,-687.59,0.00013698,3]
[330652659,1719691841245,-500.0,0.00013698,3]
[330652660,1719691841254,-500.0,0.00013698,3]
[330652661,1719691841264,-706.03,0.00013698,3]
[330652663,1719691841273,-676.61,0.00013698,3]
[330652664,1719691841283,-1253.79,0.00013698,3]
[330652666,1719691841292,-500.0,0.00013698,3]
[330652667,1719691841301,-1402.32,0.00013698,3]
[330652669,1719691841310,-500.0,0.00013698,3]
[330652671,1719691841319,-1239.43,0.00013698,3]
[330652672,1719691841329,-500.0,0.00013698,3]
[330652674,1719691841341,-677.73,0.00013698,3]
[330652675,1719691841351,-1751.05,0.00013698,3]
[330652677,1719691841360,-500.0,0.00013698,3]
[330652679,1719691841369,-500.0,0.00013698,3]
[330652680,1719691841379,-500.0,0.00013698,3]
[330652682,1719691841388,-1933.1,0.00013698,3]
[330652684,1719691841397,-500.0,0.00013698,3]
[330652685,1719691841407,-500.0,0.00013698,3]
[330652687,1719691841419,-3460.61,0.00013698,3]
[330652689,1719691841428,-250.0,0.00013698,3]
[330652690,1719691841437,-549.92,0.00013698,3]
[330652692,1719691841446,-500.0,0.00013698,3]
[330652694,1719691841455,-540.21,0.00013698,3]
[330652695,1719691841464,-823.09,0.00013698,3]
[330652696,1719691841473,-500.0,0.00013698,3]
[330652697,1719691841482,-2002.79,0.00013698,3]
[330652698,1719691841492,-1320.77,0.00013698,3]
[330652699,1719691841501,-998.86,0.00013698,3]
[330652700,1719691841511,-500.0,0.00013698,3]
[330652701,1719691841520,-500.0,0.00013698,3]
[330652702,1719691841531,-500.0,0.00013698,3]
[330652703,1719691841540,-509.62,0.00013698,3]
[330652704,1719691841550,-784.33,0.00013698,3]
[330652705,1719691841560,-1005.53,0.00013698,3]
[330652706,1719691841569,-151.0,0.00013698,2]
[330652707,1719691841578,-151.0,0.00013698,2]
[330652708,1719691841589,-500.0,0.00013698,3]
[330652709,1719691841598,-500.0,0.00013698,3]
[330652710,1719691841611,-1419.66,0.00013698,3]
[330652711,1719691841621,-1945.48,0.00013698,3]
[330652712,1719691841630,-500.0,0.00013698,3]
[330652713,1719691841639,-500.0,0.00013698,3]
[330652714,1719691841649,-500.0,0.00013698,3]
[330652715,1719691841658,-500.0,0.00013698,3]
[330652716,1719691841668,-500.0,0.00013698,3]
[330652717,1719691841677,-2299.96,0.00013698,3]
[330652718,1719691841686,-575.54,0.00013698,3]
[330652719,1719691841695,-500.0,0.00013698,3]
[330652720,1719691841706,-6302.79,0.00013698,3]
[330652721,1719691841715,-1554.47,0.00013698,3]
[330652722,1719691841724,-500.0,0.00013698,3]
[330652723,1719691841734,-500.0,0.00013698,3]
[330652724,1719691841743,-500.0,0.00013698,3]
[330652725,1719691841752,-500.0,0.00013698,3]
[330652726,1719691841760,-1480.67,0.00013698,3]
[330652727,1719691841770,-799.56,0.00013698,3]
[330652728,1719691841780,-2472.65,0.00013698,3]
[330652729,1719691841789,-500.0,0.00013698,3]
[330652730,1719691841799,-3854.38,0.00013698,3]
[330652731,1719691841808,-500.0,0.00013698,3]
[330652732,1719691841817,-1876.24,0.00013698,3]
[330652733,1719691841826,-1216.96,0.00013698,3]
[330652734,1719691841837,-500.0,0.00013698,3]
[330652735,1719691841847,-500.0,0.00013698,3]
[330652736,1719691841857,-1166.05,0.00013698,3]
[330652737,1719691841866,-490.85947123,0.00013698,3]
[330652738,1719691841875,-2077.92,0.00013698,3]
[330652739,1719691841885,-1687.96,0.00013698,3]
[330652740,1719691841894,-977.91,0.00013698,3]
[330652741,1719691841903,-1000.0,0.00013698,3]
[330652742,1719691841912,-1988.31,0.00013698,3]
[330652743,1719691841923,-500.0,0.00013698,3]
[330652744,1719691841932,-2956.64,0.00013698,3]
[330652745,1719691841943,-500.0,0.00013698,3]
[330652746,1719691841953,-1293.46,0.00013698,3]
[330652747,1719691841962,-1419.67,0.00013698,3]
[330652748,1719691841972,-2374.69,0.00013698,3]
[330652749,1719691841981,-1442.37,0.00013698,3]
[330652750,1719691841990,-500.0,0.00013698,3]
[330652751,1719691842000,-500.0,0.00013698,3]
[330652752,1719691842009,-736.3,0.00013698,3]
[330652753,1719691842020,-2155.69,0.00013698,3]
[330652754,1719691842030,-1502.31,0.00013698,3]
[330652755,1719691842040,-500.0,0.00013698,3]
[330652756,1719691842050,-555.69,0.00013698,3]
[330652757,1719691842060,-500.0,0.00013698,2]
[330652758,1719691842070,-500.0,0.00013698,2]
[330652759,1719691842080,-1370.82,0.00013698,3]
[330652760,1719691842090,-3826.98,0.00013698,3]
[330652761,1719691842100,-1139.83,0.00013698,3]
[330652762,1719691842110,-704.78,0.00013698,3]
[330652763,1719691842121,-507.08,0.00013698,3]
[330652764,1719691842131,-500.0,0.00013698,3]
[330652765,1719691842140,-500.0,0.00013698,3]
[330652766,1719691842150,-500.0,0.00013698,3]
[330652767,1719691842159,-500.0,0.00013698,3]
[330652768,1719691842168,-500.0,0.00013698,3]
[330652769,1719691842177,-500.0,0.00013698,3]
[330652770,1719691842187,-500.0,0.00013698,3]
[330652771,1719691842195,-1193.02,0.00013698,3]
[330652772,1719691842205,-500.0,0.00013698,3]
[330652773,1719691842214,-6471.47,0.00013698,3]
[330652774,1719691842224,-1194.26,0.00013698,3]
[330652775,1719691842233,-912.24,0.00013698,3]
[330652776,1719691842242,-500.0,0.00013698,3]
[330652777,1719691842251,-664.29,0.00013698,3]
[330652778,1719691842260,-2170.92,0.00013698,3]
[330652779,1719691842269,-500.0,0.00013698,3]
[330652780,1719691842279,-989.99,0.00013698,3]
[330652781,1719691842288,-500.0,0.00013698,3]
[330652782,1719691842297,-500.0,0.00013698,3]
[330652783,1719691842306,-1505.8,0.00013698,3]
[330652784,1719691842316,-500.0,0.00013698,3]
[330652785,1719691842325,-1781.82,0.00013698,3]
[330652786,1719691842338,-500.0,0.00013698,3]
[330652787,1719691842353,-1671.15,0.00013698,3]
[330652788,1719691842362,-590.01,0.00013698,3]
[330652789,1719691842371,-244.9094816,0.00013698,3]
[330652790,1719691842380,-500.0,0.00013698,3]
[330652791,1719691842391,-500.0,0.00013698,3]
[330652792,1719691842402,-500.0,0.00013698,3]
[330652793,1719691842413,-500.0,0.00013698,3]
[330652794,1719691842425,-500.0,0.00013698,3]
[330652795,1719691842435,-4196.89,0.00013698,3]
[330652796,1719691842444,-500.0,0.00013698,3]
[330652797,1719691842454,-1579.83,0.00013698,3]
[330652798,1719691842463,-500.0,0.00013698,3]
[330652799,1719691842473,-500.0,0.00013698,3]
[330652800,1719691842482,-516.45,0.00013698,3]
[330652801,1719691842491,-1515.45,0.00013698,3]
[330652802,1719691842500,-500.0,0.00013698,3]
[330652803,1719691842509,-500.0,0.00013698,3]
[330652804,1719691842518,-151.0,0.00013698,2]
[330652806,1719691842528,-151.0,0.00013698,2]
[330652808,1719691842537,-500.0,0.00013698,3]
[330652810,1719691842546,-500.0,0.00013698,3]
[330652812,1719691842555,-765.47,0.00013698,3]
[330652814,1719691842564,-152.324312,0.00013698,2]
[330652816,1719691842575,-500.0,0.00013698,3]
[330652818,1719691842585,-1220.78,0.00013698,3]
[330652821,1719691842594,-1817.81,0.00013698,3]
[330652824,1719691842602,-501.66399485,0.00013698,3]
[330652827,1719691842612,-1166.62,0.00013698,3]
[330652830,1719691842621,-703.11,0.00013698,3]
[330652833,1719691842631,-500.0,0.00013698,3]
[330652836,1719691842640,-500.0,0.00013698,3]
[330652839,1719691842649,-1081.28,0.00013698,3]
[330652842,1719691842658,-1103.77,0.00013698,3]
[330652846,1719691842669,-634.53,0.00013698,3]
[330652849,1719691842678,-500.0,0.00013698,3]
[330652852,1719691842687,-500.0,0.00013698,3]
[330652855,1719691842696,-2070.31,0.00013698,3]
[330652857,1719691842705,-2546.46,0.00013698,3]
[330652859,1719691842714,-1159.88,0.00013698,3]
[330652861,1719691842724,-500.0,0.00013698,3]
[330652862,1719691842734,-500.0,0.00013698,3]
[330652864,1719691842744,-1263.21,0.00013698,3]
[330652867,1719691842754,-500.0,0.00013698,3]
[330652869,1719691842763,-500.0,0.00013698,3]
[330652870,1719691842773,-500.0,0.00013698,3]
[330652872,1719691842783,-500.0,0.00013698,3]
[330652874,1719691842793,-685.42,0.00013698,3]
[330652876,1719691842802,-685.42,0.00013698,3]
[330652878,1719691842811,-1295.53,0.00013698,3]
[330652880,1719691842820,-500.0,0.00013698,3]
[330652881,1719691842830,-335.19983294,0.00013698,3]
[330652883,1719691842838,-520.35,0.00013698,3]
[330652885,1719691842847,-921.81,0.00013698,3]
[330652887,1719691842856,-1283.69,0.00013698,3]
[330652889,1719691842866,-500.0,0.00013698,3]
[330652891,1719691842875,-1949.14,0.00013698,3]
[330652893,1719691842884,-1325.22,0.00013698,3]
[330652894,1719691842893,-500.0,0.00013698,3]
[330652895,1719691842903,-500.0,0.00013698,3]
[330652896,1719691842911,-597.38,0.00013698,3]
[330652897,1719691842921,-500.0,0.00013698,3]
[330652898,1719691842930,-789.29,0.00013698,3]
[330652899,1719691842939,-500.0,0.00013698,3]
[330652900,1719691842949,-500.0,0.00013698,3]
[330652901,1719691842958,-976.52,0.00013698,3]
[330652902,1719691842967,-500.0,0.00013698,3]
[330652903,1719691842976,-741.4,0.00013698,3]
[330652904,1719691842986,-1027.0,0.00013698,3]
[330652905,1719691842995,-1759.93,0.00013698,3]
[330652906,1719691843005,-545.98,0.00013698,3]
[330652907,1719691843014,-1108.94,0.00013698,3]
[330652908,1719691843023,-500.0,0.00013698,3]
[330652909,1719691843032,-500.0,0.00013698,3]
[330652910,1719691843042,-881.06,0.00013698,3]
[330652911,1719691843052,-500.0,0.00013698,3]
[330652912,1719691843061,-500.0,0.00013698,3]
[330652913,1719691843070,-660.42,0.00013698,3]
[330652914,1719691843080,-500.0,0.00013698,3]
[330652915,1719691843090,-910.94,0.00013698,3]
[330652917,1719691843098,-8090.23,0.00013698,3]
[330652919,1719691843107,-500.0,0.00013698,3]
[330652921,1719691843116,-620.55,0.00013698,3]
[330652923,1719691843124,-500.0,0.00013698,3]
[330652925,1719691843134,-500.0,0.00013698,3]
[330652927,1719691843142,-500.0,0.00013698,3]
[330652928,1719691843152,-383.07815316,0.00013698,3]
[330652930,1719691843160,-534.07,0.00013698,3]
[330652932,1719691843169,-1370.17,0.00013698,3]
[330652934,1719691843179,-500.0,0.00013698,3]
[330652935,1719691843188,-1039.95,0.00013698,3]
[330652936,1719691843197,-587.03,0.00013698,3]
[330652937,1719691843206,-500.0,0.00013698,3]
[330652938,1719691843215,-1738.24,0.00013698,3]
[330652939,1719691843225,-500.0,0.00013698,3]
[330652940,1719691843235,-6369.69,0.00013698,3]
[330652942,1719691843245,-891.52,0.00013698,3]
[330652943,1719691843254,-529.64,0.00013698,3]
[330652944,1719691843263,-1910.93,0.00013698,3]
[330652946,1719691843272,-933.07,0.00013698,3]
[330652947,1719691843281,-500.0,0.00013698,3]
[330652948,1719691843291,-500.0,0.00013698,3]
[330652949,1719691843300,-624.09,0.00013698,3]
[330652950,1719691843309,-500.0,0.00013698,3]
[330652951,1719691843318,-500.0,0.00013698,3]
[330652952,1719691843327,-2773.97,0.00013698,3]
[330652953,1719691843340,-3739.52,0.00013698,3]
[330652954,1719691843349,-500.0,0.00013698,3]
[330652955,1719691843358,-1357.61,0.00013698,3]
[330652956,1719691843367,-500.0,0.00013698,3]
[330652957,1719691843378,-743.94,0.00013698,3]
[330652958,1719691843387,-1444.12,0.00013698,3]
[330652959,1719691843395,-7929.21,0.00013698,3]
[330652960,1719691843404,-2485.96,0.00013698,3]
[330652961,1719691843416,-500.0,0.00013698,3]
[330652962,1719691843425,-1414.01,0.00013698,3]
[330652963,1719691843434,-1626.55,0.00013698,3]
[330652964,1719691843443,-500.0,0.00013698,3]
[330652965,1719691843452,-1731.4,0.00013698,3]
[330652966,1719691843461,-1352.61,0.00013698,3]
[330652967,1719691843470,-500.0,0.00013698,3]
[330652968,1719691843479,-3332.01,0.00013698,3]
[330652969,1719691843488,-6423.79,0.00013698,3]
[330652970,1719691843498,-568.33,0.00013698,3]
[330652971,1719691843507,-910.27,0.00013698,3]
[330652972,1719691843516,-3242.79,0.00013698,3]
[330652973,1719691843526,-585.37,0.00013698,3]
[330652974,1719691843535,-500.0,0.00013698,3]
[330652975,1719691843544,-500.0,0.00013698,3]
[330652976,1719691843554,-2056.69,0.00013698,3]
[330652977,1719691843564,-9938.18,0.00013698,3]
[330652978,1719691843573,-846.18,0.00013698,3]
[330652979,1719691843584,-1507.85,0.00013698,3]
[330652980,1719691843593,-500.0,0.00013698,3]
[330652981,1719691843602,-1314.36,0.00013698,3]
[330652982,1719691843611,-1130.19,0.00013698,3]
[330652983,1719691843620,-684.69,0.00013698,3]
[330652984,1719691843629,-500.0,0.00013698,3]
[330652985,1719691843639,-1324.82,0.00013698,3]
[330652986,1719691843648,-500.0,0.00013698,3]
[330652987,1719691843658,-500.0,0.00013698,3]
[330652988,1719691843667,-6921.77,0.00013698,3]
[330652989,1719691843677,-1277.49,0.00013698,3]
[330652990,1719691843686,-500.0,0.00013698,3]
[330652991,1719691843695,-500.0,0.00013698,3]
[330652992,1719691843707,-1345.82,0.00013698,3]
[330652993,1719691843719,-19104.87209255,0.00013698,3]
[330652994,1719691843753,-3113.39790745,0.00013698,3]
[330652995,1719691843762,-500.0,0.00013698,3]
[330652996,1719691843772,-500.0,0.00013698,3]
[330652997,1719691843782,-982.24,0.00013698,3]
[330652998,1719691843791,-1169.87,0.00013698,3]
[330652999,1719691843801,-501.23269882,0.00013698,3]
[330653000,1719691843810,-500.0,0.00013698,3]
[330653001,1719691843819,-500.0,0.00013698,3]
[330653002,1719691843828,-144.61216798,0.00013698,3]
[330653003,1719691843848,-355.38783202,0.00013698,3]
[330653004,1719691843857,-151.0,0.00013698,2]
[330653005,1719691843866,-151.0,0.00013698,2]
[330653006,1719691843875,-151.0,0.00013698,2]
[330653007,1719691843884,-151.0,0.00013698,2]
[330653008,1719691843893,-500.0,0.00013698,3]
[330653009,1719691843902,-500.0,0.00013698,3]
[330653010,1719691843912,-500.0,0.00013698,3]
[330653011,1719691843921,-500.0,0.00013698,3]
[330653012,1719691843930,-500.0,0.00013698,3]
[330653013,1719691843939,-177.8173448,0.00013698,3]
[330653014,1719691843951,-406.7526552,0.00013698,3]
[330653015,1719691843961,-2834.7,0.00013698,3]
[330653016,1719691843970,-500.0,0.00013698,3]
[330653017,1719691843980,-999.84,0.00013698,3]
[330653018,1719691843989,-500.0,0.00013698,3]
[330653019,1719691843999,-500.0,0.00013698,3]
[330653020,1719691844008,-624.37,0.00013698,3]
[330653021,1719691844017,-1201.75,0.00013698,3]
[330653022,1719691844026,-1180.18,0.00013698,3]
[330653023,1719691844037,-500.0,0.00013698,3]
[330653024,1719691844047,-500.0,0.00013698,3]
[330653025,1719691844057,-500.0,0.00013698,3]
[330653026,1719691844066,-2936.37,0.00013698,3]
[330653027,1719691844075,-685.99,0.00013698,3]
[330653028,1719691844085,-3100.11064612,0.00013698,3]
[330653029,1719691844847,-205.51501897,0.00012302,2]
[330653030,1719691844861,-504.74498103,0.00013698,3]
[330653031,1719691844875,-1425.17437285,0.00013698,3]
[330653032,1719691844885,-13.79982786,0.00013698,3]
[330653033,1719691844900,-639.43811585,0.00013698,3]
[330653034,1719691844936,-209.33205629,0.00013698,3]
[330653035,1719691844947,-500.0,0.00013698,3]
[330653036,1719691844957,-2099.92,0.00013698,3]
[330653037,1719691844969,-500.0,0.00013698,3]
[330653038,1719691844981,-500.0,0.00013698,3]
[330653039,1719691844992,-1358.14,0.00013698,3]
[330653040,1719691845005,-616.73,0.00013698,3]
[330653041,1719691845017,-1459.2,0.00013698,3]
[330653042,1719691845029,-500.0,0.00013698,3]
[330653043,1719691845042,-500.0,0.00013698,3]
[330653044,1719691845054,-980.49,0.00013698,3]
[330653045,1719691845068,-608.79,0.00013698,3]
[330653046,1719691845080,-4754.68,0.00013698,3]
[330653047,1719691845095,-500.0,0.00013698,3]
[330653048,1719691845108,-2037.41,0.00013698,3]
[330653049,1719691845119,-500.0,0.00013698,3]
[330653050,1719691845129,-1770.25,0.00013698,3]
[330653051,1719691845140,-3022.7,0.00013698,3]
[330653052,1719691845150,-1463.69,0.00013698,3]
[330653053,1719691845162,-624.43,0.00013698,3]
[330653054,1719691845173,-2468.94,0.00013698,3]
[330653055,1719691845186,-3291.93,0.00013698,3]
[330653056,1719691845198,-500.0,0.00013698,3]
[330653057,1719691845210,-500.0,0.00013698,3]
[330653058,1719691845220,-549.0,0.00013698,3]
[330653059,1719691845231,-1345.31,0.00013698,3]
[330653060,1719691845243,-2541.72,0.00013698,3]
[330653061,1719691845253,-500.0,0.00013698,3]
[330653062,1719691845265,-1173.79,0.00013698,3]
[330653063,1719691845276,-3994.96,0.00013698,3]
[330653064,1719691845286,-3662.05,0.00013698,3]
[330653065,1719691845297,-1872.82,0.00013698,3]
[330653066,1719691845307,-500.0,0.00013698,3]
[330653067,1719691845319,-500.0,0.00013698,3]
[330653068,1719691845330,-500.0,0.00013698,3]
[330653069,1719691845351,-1176.43,0.00013698,3]
[330653070,1719691845362,-500.0,0.00013698,3]
[330653071,1719691845372,-2020.87,0.00013698,3]
[330653072,1719691845384,-252.74,0.00013698,3]
[330653073,1719691845395,-530.07,0.00013698,3]
[330653074,1719691845406,-500.0,0.00013698,3]
[330653075,1719691845416,-500.0,0.00013698,3]
[330653076,1719691845428,-1091.11,0.00013698,3]
[330653077,1719691845440,-500.0,0.00013698,3]
[330653078,1719691845451,-500.0,0.00013698,3]
[330653079,1719691845462,-500.0,0.00013698,3]
[330653080,1719691845474,-1031.53,0.00013698,3]
[330653081,1719691845484,-898.12,0.00013698,3]
[330653082,1719691845495,-500.0,0.00013698,3]
[330653083,1719691845506,-500.0,0.00013698,3]
[330653084,1719691845517,-1092.63,0.00013698,3]
[330653085,1719691845528,-500.0,0.00013698,3]
[330653086,1719691845539,-556.15,0.00013698,3]
[330653087,1719691845550,-1074.65,0.00013698,3]
[330653088,1719691845561,-2027.77,0.00013698,3]
[330653089,1719691845573,-500.0,0.00013698,3]
[330653090,1719691845584,-6218.32,0.00013698,3]
[330653091,1719691845594,-197.951765,0.00013698,2]
[330653092,1719691845606,-197.951765,0.00013698,2]
[330653093,1719691845617,-197.951765,0.00013698,2]
[330653094,1719691845627,-197.951765,0.00013698,2]
[330653096,1719691845639,-500.0,0.00013698,3]
[330653097,1719691845649,-500.0,0.00013698,3]
[330653099,1719691845660,-197.951765,0.00013698,2]
[330653100,1719691845671,-7335.55,0.00013698,3]
[330653101,1719691845681,-500.0,0.00013698,3]
[330653103,1719691845692,-3548.88,0.00013698,3]
[330653105,1719691845703,-2354.3,0.00013698,3]
[330653107,1719691845713,-197.951765,0.00013698,2]
[330653108,1719691845724,-197.951765,0.00013698,2]
[330653109,1719691845735,-197.951765,0.00013698,2]
[330653110,1719691845746,-197.951765,0.00013698,2]
[330653111,1719691845757,-1737.75,0.00013698,3]
[330653112,1719691845768,-714.64,0.00013698,3]
[330653113,1719691845779,-197.951765,0.00013698,2]
[330653114,1719691845790,-1003.32,0.00013698,3]
[330653115,1719691845800,-1281.86,0.00013698,3]
[330653116,1719691845812,-562.48,0.00013698,3]
[330653117,1719691845823,-500.0,0.00013698,3]
[330653118,1719691845834,-4679.3,0.00013698,3]
[330653119,1719691845844,-500.0,0.00013698,3]